fUSD/lending_fUSD_20260203
["ID","MTS","AMOUNT","RATE_DAILY","PERIOD"]
[404386930,1770089435690,-721.12765535,0.0001345,2]
[404386931,1770089435702,-2000.0,0.0001345,2]
[404386932,1770089435714,-2000.0,0.0001345,2]
[404386933,1770089435727,-2000.0,0.0001345,2]
[404386934,1770089435738,-2000.0,0.0001345,2]
[404386935,1770089435749,-2000.0,0.0001345,2]
[404386936,1770089435760,-2000.0,0.0001345,2]
[404386937,1770089435772,-1428.38747117,0.0001345,2]
[404386938,1770089435784,-2000.0,0.0001345,2]
[404386939,1770089435795,-2000.0,0.0001345,2]
[404386940,1770089435806,-2000.0,0.0001345,2]
[404386941,1770089435818,-2000.0,0.0001345,2]
[404386942,1770089435829,-2000.0,0.0001345,2]
[404386943,1770089435840,-209.40437684,0.0001345,2]
[404386944,1770089435851,-209.40437684,0.0001345,2]
[404386945,1770089435864,-1456.8,0.00013453,2]
[404386946,1770089435876,-183.76045452,0.000135,2]
[404386947,1770089435887,-217.15233878,0.00013505,2]
[404386948,1770089435902,-225.18697532,0.0001356,2]
[404386949,1770089435915,-62941.43151265,0.00013599,2]
[404386950,1770089435928,-233.51889341,0.00013615,2]
[404386951,1770089435941,-242.15909246,0.0001367,2]
[404386952,1770089435955,-552.61203619,0.00013698,2]
[404386953,1770089435969,-200.0,0.00013699,2]
[404386954,1770089435984,-7243.61,0.00013699,2]
[404386955,1770089435997,-500.0,0.00013699,2]
[404386956,1770089436011,-500.0,0.00013699,2]
[404386957,1770089436023,-500.0,0.00013699,2]
[404386958,1770089436036,-251.11897888,0.00013725,2]
[404386959,1770089436049,-1456.8,0.00013727,2]
[404386960,1770089436061,-260.4103811,0.0001378,2]
[404386961,1770089436076,-160.0,0.00013823,2]
[404386962,1770089436089,-270.0455652,0.00013835,2]
[404386963,1770089436106,-35766.0,0.00013882,2]
[404386964,1770089436119,-9035.0,0.00013887,2]
[404386965,1770089436130,-280.03725112,0.0001389,2]
[404386966,1770089436141,-290.39862941,0.00013945,2]
[404386967,1770089436155,-181.08010149,0.00013998,2]
[404386968,1770089436167,-1481.23780761,0.00013998,2]
[404386969,1770089436180,-354.84887414,0.00013998,2]
[404386970,1770089436193,-301.1433787,0.00014,2]
[404386971,1770089436205,-1456.8,0.00014001,2]
[404386972,1770089436218,-150.00766902,0.00014101,2]
[404386973,1770089436233,-44956.68910458,0.00014156,2]
[404386974,1770089436245,-1000.0,0.00014247,2]
[404386975,1770089436257,-1001.21553048,0.00014247,2]
[404386976,1770089436271,-1456.8,0.00014275,2]
[404386977,1770089436288,-464.55,0.00014342,2]
[404386978,1770089436302,-10332.61714049,0.0001439,2]
[404386979,1770089436315,-187.78006525,0.00014546,2]
[404386980,1770089436330,-1536.04360649,0.00014546,2]
[404386981,1770089436343,-1456.8,0.00014549,2]
[404386982,1770089436357,-152.47117233,0.00014601,2]
[404386983,1770089436373,-62941.43151265,0.00014674,2]
[404386984,1770089436385,-500.0,0.00014685,2]
[404386985,1770089436398,-495.7739334,0.00014795,2]
[404386986,1770089436412,-334.5472959,0.00014819,2]
[404386987,1770089436425,-1456.8,0.00014823,2]
[404386988,1770089436438,-221.5122,0.00015,2]
[404386989,1770089436449,-2051.98803165,0.00015,2]
[404386990,1770089436461,-2141.537179,0.00015,14]
[404386991,1770089436472,-7988.62760331,0.00015,2]
[404386992,1770089436485,-110643.04134606,0.00015,3]
[404386993,1770089436502,-1254.41808677,0.00015,3]
[404386994,1770089436516,-94826.44448909,0.00015,3]
[404386995,1770089436532,-1000.0,0.00015021,2]
[404386996,1770089436545,-900.0,0.00015068,2]
[404386997,1770089436560,-194.72792766,0.00015094,2]
[404386998,1770089436575,-1592.87721993,0.00015094,2]
[404386999,1770089436589,-1456.8,0.00015097,2]
[404387000,1770089436602,-5777.0,0.00015276,2]
[404387001,1770089436616,-1456.8,0.00015371,2]
[404387002,1770089436629,-150.00766902,0.00015468,2]
[404387003,1770089436643,-201.93286099,0.00015642,2]
[404387004,1770089436657,-1456.8,0.00015645,2]
[404387005,1770089436668,-150.0,0.00015686,2]
[404387006,1770089436680,-1000.0,0.00015706,2]
[404387007,1770089436693,-33232.41964663,0.0001575,2]
[404387008,1770089436722,-5503.44323838,0.0001575,2]
[404387009,1770089436740,-2371.5,0.0001575,2]
[404387010,1770089437913,-10497.25482916,0.0001575,2]
[404387011,1770089437974,-521.49197848,0.0001575,2]
[404387012,1770089438032,-6756.13557786,0.0001575,2]
[404387013,1770089438046,-4059.18624214,0.0001575,2]
[404387014,1770089438319,-500.0,0.00015836,2]
[404387015,1770089438332,-500.0,0.00015893,2]
[404387016,1770089438344,-1456.93212863,0.00015919,2]
[404387017,1770089438356,-160.0,0.00016,3]
[404387018,1770089438367,-24428.33958916,0.00016,4]
[404387019,1770089438380,-852.64827951,0.00016,4]
[404387020,1770089438394,-1802658.85043744,0.00016,4]
[404387021,1770089438406,-256.701042,0.00016,2]
[404387022,1770089438417,-341.83713414,0.00016092,2]
[404387023,1770089438428,-361.84102799,0.00016103,2]
[404387024,1770089438439,-9999.99,0.00016116,2]
[404387025,1770089438451,-159.65710457,0.00016128,2]
[404387026,1770089438462,-346.92554585,0.00016188,2]
[404387027,1770089438473,-599.60298507,0.00016189,2]
[404387028,1770089438483,-747.8093786,0.00016189,2]
[404387029,1770089438493,-209.40437684,0.0001619,2]
[404387030,1770089438505,-5000.00139764,0.000162,5]
[404387031,1770089438517,-200.0,0.0001634,2]
[404387032,1770089438529,-464.55,0.00016349,2]
[404387033,1770089438540,-1911.41410949,0.00016438,2]
[404387034,1770089438551,-2230.71745003,0.00016438,2]
[404387035,1770089438564,-2230.71745003,0.00016438,2]
[404387036,1770089438575,-2230.71745003,0.00016438,2]
[404387037,1770089438586,-2230.71745003,0.00016438,2]
[404387039,1770089438597,-2230.71745003,0.00016438,2]
[404387041,1770089438608,-2230.71745003,0.00016438,2]
[404387042,1770089438619,-2230.71745003,0.00016438,2]
[404387043,1770089438630,-2230.71745003,0.00016438,2]
[404387044,1770089438642,-2230.71745003,0.00016438,2]
[404387046,1770089438653,-2230.71745003,0.00016438,2]
[404387048,1770089438663,-2230.71745003,0.00016438,2]
[404387050,1770089438673,-2230.71745003,0.00016438,2]
[404387052,1770089438684,-2230.71745003,0.00016438,2]
[404387054,1770089438695,-2230.71745003,0.00016438,2]
[404387056,1770089438706,-2230.71745003,0.00016438,2]
[404387058,1770089438718,-2230.71745003,0.00016438,2]
[404387060,1770089438729,-2230.71745003,0.00016438,2]
[404387062,1770089438740,-2230.71745003,0.00016438,2]
[404387064,1770089438752,-2230.71745003,0.00016438,2]
[404387066,1770089438764,-2230.71745003,0.00016438,2]
[404387068,1770089438774,-2230.71745003,0.00016438,2]
[404387069,1770089438784,-2230.71745003,0.00016438,2]
[404387071,1770089438794,-2230.71745003,0.00016438,2]
[404387073,1770089438805,-2230.71745003,0.00016438,2]
[404387075,1770089438818,-2230.71745003,0.00016438,2]
[404387077,1770089438828,-2230.71745003,0.00016438,2]
[404387079,1770089438840,-2230.71745003,0.00016438,2]
[404387081,1770089438851,-2230.71745003,0.00016438,2]
[404387083,1770089438862,-2230.71745003,0.00016438,2]
[404387086,1770089438873,-2230.71745003,0.00016438,2]
[404387088,1770089438883,-2230.71745003,0.00016438,2]
[404387090,1770089438896,-2230.71745003,0.00016438,2]
[404387092,1770089438906,-2230.71745003,0.00016438,2]
[404387094,1770089438916,-2230.71745003,0.00016438,2]
[404387096,1770089438928,-2230.71745003,0.00016438,2]
[404387097,1770089438939,-2230.71745003,0.00016438,2]
[404387100,1770089438951,-2230.71745003,0.00016438,2]
[404387102,1770089438962,-2230.71745003,0.00016438,2]
[404387104,1770089438973,-2230.71745003,0.00016438,2]
[404387106,1770089438986,-2230.71745003,0.00016438,2]
[404387108,1770089438997,-2230.71745003,0.00016438,2]
[404387110,1770089439008,-2230.71745003,0.00016438,2]
[404387112,1770089439018,-2230.71745003,0.00016438,2]
[404387114,1770089439028,-2230.71745003,0.00016438,2]
[404387116,1770089439039,-2230.71745003,0.00016438,2]
[404387117,1770089439049,-2230.71745003,0.00016438,2]
[404387120,1770089439061,-2230.71745003,0.00016438,2]
[404387122,1770089439072,-2230.71745003,0.00016438,2]
[404387123,1770089439082,-2230.71745003,0.00016438,2]
[404387126,1770089439094,-2230.71745003,0.00016438,2]
[404387127,1770089439105,-2230.71745003,0.00016438,2]
[404387129,1770089439118,-2230.71745003,0.00016438,2]
[404387131,1770089439129,-2230.71745003,0.00016438,2]
[404387133,1770089439139,-2230.71745003,0.00016438,2]
[404387135,1770089439150,-2230.71745003,0.00016438,2]
[404387137,1770089439161,-2230.71745003,0.00016438,2]
[404387139,1770089439172,-2230.71745003,0.00016438,2]
[404387141,1770089439183,-2230.71745003,0.00016438,2]
[404387143,1770089439193,-2208.41027552,0.00016438,2]
[404387145,1770089439203,-2208.41027552,0.00016438,2]
[404387147,1770089439215,-2208.41027552,0.00016438,2]
[404387149,1770089439225,-2208.41027552,0.00016438,2]
[404387151,1770089439235,-2208.41027552,0.00016438,2]
[404387153,1770089439245,-2208.41027552,0.00016438,2]
[404387155,1770089439256,-2208.41027552,0.00016438,2]
[404387157,1770089439266,-2208.41027552,0.00016438,2]
[404387160,1770089439277,-2208.41027552,0.00016438,2]
[404387161,1770089439289,-2208.41027552,0.00016438,2]
[404387164,1770089439300,-2208.41027552,0.00016438,2]
[404387166,1770089439311,-2208.41027552,0.00016438,2]
[404387168,1770089439321,-2208.41027552,0.00016438,2]
[404387170,1770089439332,-2208.41027552,0.00016438,2]
[404387172,1770089439343,-2208.41027552,0.00016438,2]
[404387173,1770089439352,-2208.41027552,0.00016438,2]
[404387175,1770089439361,-2208.41027552,0.00016438,2]
[404387178,1770089439371,-2208.41027552,0.00016438,2]
[404387179,1770089439380,-2208.41027552,0.00016438,2]
[404387182,1770089439393,-2208.41027552,0.00016438,2]
[404387184,1770089439403,-2208.41027552,0.00016438,2]
[404387185,1770089439413,-2208.41027552,0.00016438,2]
[404387187,1770089439422,-2208.41027552,0.00016438,2]
[404387189,1770089439433,-2208.41027552,0.00016438,2]
[404387191,1770089439443,-2208.41027552,0.00016438,2]
[404387193,1770089439452,-2208.41027552,0.00016438,2]
[404387195,1770089439462,-2208.41027552,0.00016438,2]
[404387197,1770089439472,-2208.41027552,0.00016438,2]
[404387199,1770089439481,-2208.41027552,0.00016438,2]
[404387201,1770089439492,-2208.41027552,0.00016438,2]
[404387203,1770089439502,-500.0,0.00016438,2]
[404387205,1770089439512,-500.0,0.00016438,2]
[404387207,1770089439521,-618.03864824,0.00016438,2]
[404387209,1770089439531,-900.0,0.00016438,2]
[404387212,1770089439541,-1725.90149928,0.00016444,2]
[404387214,1770089439551,-3481.0,0.00016584,2]
[404387216,1770089439561,-1410.0,0.00016584,2]
[404387218,1770089439572,-360.83984207,0.000166,2]
[404387220,1770089439585,-1084.09055279,0.00016602,2]
[404387222,1770089439595,-471.47764088,0.00016639,2]
[404387224,1770089439604,-217.15233878,0.00016738,2]
[404387226,1770089439614,-1500.0,0.000168,2]
[404387228,1770089439623,-62941.43151265,0.00016825,2]
[404387230,1770089439632,-717.793,0.00016825,2]
[404387232,1770089439642,-8556.929,0.00016825,2]
[404387234,1770089439651,-150.00766902,0.00016835,2]
[404387236,1770089439660,-5888.0,0.0001685,2]
[404387237,1770089439670,-610040.63736805,0.00017,2]
[404387239,1770089439679,-5888.0,0.00017017,2]
[404387242,1770089439689,-1500.0,0.000172,2]
[404387243,1770089439698,-200.0,0.00017248,2]
[404387245,1770089439708,-1000.0,0.0001726,2]
[404387247,1770089439717,-159.65710457,0.0001728,2]
[404387249,1770089439726,-225.18697532,0.00017286,2]
[404387251,1770089439735,-500.0,0.00017288,2]
[404387253,1770089439744,-200.0,0.00017289,2]
[404387255,1770089439754,-5888.0,0.00017417,2]
[404387257,1770089439763,-52248.952038,0.000175,3]
[404387258,1770089439773,-5888.0,0.00017529,2]
[404387259,1770089439784,-1000.0,0.00017534,2]
[404387260,1770089439794,-359.76179104,0.00017557,2]
[404387261,1770089439806,-1271.0,0.000176,2]
[404387262,1770089439816,-150.0,0.000176,2]
[404387263,1770089439825,-1205.0,0.000176,2]
[404387264,1770089439835,-917.0,0.000176,2]
[404387265,1770089439844,-1500.0,0.000176,2]
[404387266,1770089439855,-587.8745622,0.0001764,2]
[404387267,1770089439865,-200.0,0.00017649,2]
[404387268,1770089439875,-1000.0,0.0001767,2]
[404387269,1770089439886,-500.0,0.00017808,2]
[404387270,1770089439895,-250.0,0.00017808,10]
[404387271,1770089439905,-250.0,0.00017808,10]
[404387272,1770089439914,-250.0,0.00017808,10]
[404387273,1770089439923,-250.0,0.00017808,10]
[404387274,1770089439933,-291.65364,0.00017808,10]
[404387275,1770089439942,-1000.0,0.00017808,2]
[404387276,1770089439951,-10000.0,0.00017818,2]
[404387277,1770089439961,-2000.0,0.0001782,2]
[404387278,1770089439972,-2000.0,0.0001782,2]
[404387279,1770089439983,-233.51889341,0.00017834,2]
[404387280,1770089439994,-500.0,0.00017863,2]
[404387281,1770089440005,-500.0,0.000179,2]
[404387282,1770089440016,-62941.43151265,0.000179,2]
[404387283,1770089440025,-500.0,0.000179,2]
[404387284,1770089440034,-500.0,0.000179,2]
[404387285,1770089440044,-500.0,0.000179,2]
[404387286,1770089440054,-500.0,0.000179,2]
[404387287,1770089440065,-500.0,0.000179,2]
[404387288,1770089440074,-500.0,0.000179,2]
[404387289,1770089440084,-500.0,0.000179,2]
[404387290,1770089440093,-500.0,0.000179,2]
[404387291,1770089440102,-500.0,0.000179,2]
[404387292,1770089440113,-500.0,0.000179,2]
[404387293,1770089440123,-500.0,0.000179,2]
[404387294,1770089440133,-500.0,0.000179,2]
[404387295,1770089440142,-500.0,0.000179,2]
[404387296,1770089440151,-500.0,0.000179,2]
[404387297,1770089440160,-500.0,0.000179,2]
[404387298,1770089440169,-500.0,0.000179,2]
[404387299,1770089440179,-500.0,0.000179,2]
[404387300,1770089440191,-500.0,0.000179,2]
[404387301,1770089440200,-500.0,0.000179,2]
[404387302,1770089440209,-500.0,0.000179,2]
[404387303,1770089440219,-500.0,0.000179,2]
[404387304,1770089440228,-500.0,0.000179,2]
[404387305,1770089440237,-500.0,0.000179,2]
[404387306,1770089440246,-500.0,0.000179,2]
[404387307,1770089440255,-500.0,0.000179,2]
[404387308,1770089440264,-177.67175563,0.000179,2]
[404387309,1770089440273,-18594.0,0.000179,2]
[404387310,1770089440282,-261.0,0.00017902,2]
[404387311,1770089440292,-500.0,0.00017918,2]
[404387312,1770089440301,-500.0,0.00017972,2]
[404387313,1770089440312,-2888.05336964,0.0001799,3]
[404387315,1770089440321,-6635.2220609,0.0001799,2]
[404387316,1770089440330,-151.0,0.00017997,2]
[404387318,1770089440340,-7978.5167216,0.00017998,2]
[404387320,1770089440349,-3654305.63216565,0.00018,2]
[404387322,1770089440358,-151.0,0.00018,2]
[404387324,1770089440367,-151.0,0.00018,2]
[404387326,1770089440376,-151.0,0.00018,2]
[404387328,1770089440386,-500.0,0.00018,2]
[404387330,1770089440395,-1503.0,0.00018,2]
[404387332,1770089440404,-153.79594173,0.00018,2]
[404387334,1770089440413,-1503.0,0.00018,2]
[404387336,1770089440422,-1503.0,0.00018,2]
[404387338,1770089440431,-151.0,0.00018,2]
[404387340,1770089440442,-1503.0,0.00018,2]
[404387342,1770089440451,-151.0,0.00018,2]
[404387344,1770089440460,-1503.0,0.00018,2]
[404387346,1770089440469,-151.0,0.00018,2]
[404387348,1770089440478,-1503.0,0.00018,2]
[404387350,1770089440487,-151.0,0.00018,2]
[404387352,1770089440495,-1503.0,0.00018,2]
[404387354,1770089440504,-1503.0,0.00018,2]
[404387356,1770089440514,-151.0,0.00018,2]
[404387358,1770089440524,-1503.0,0.00018,2]
[404387360,1770089440533,-151.0,0.00018,2]
[404387362,1770089440544,-1503.0,0.00018,2]
[404387364,1770089440553,-151.0,0.00018,2]
[404387366,1770089440564,-1503.0,0.00018,2]
[404387368,1770089440573,-151.0,0.00018,2]
[404387370,1770089440583,-1503.0,0.00018,2]
[404387372,1770089440591,-1503.0,0.00018,2]
[404387374,1770089440601,-1503.0,0.00018,2]
[404387376,1770089440610,-1503.0,0.00018,2]
[404387378,1770089440619,-1503.0,0.00018,2]
[404387380,1770089440628,-1503.0,0.00018,2]
[404387382,1770089440637,-1503.0,0.00018,2]
[404387384,1770089440646,-151.0,0.00018,2]
[404387386,1770089440655,-1503.0,0.00018,2]
[404387388,1770089440664,-151.0,0.00018,2]
[404387390,1770089440672,-151.0,0.00018,2]
[404387392,1770089440681,-1503.0,0.00018,2]
[404387394,1770089440691,-151.0,0.00018,2]
[404387396,1770089440700,-1503.0,0.00018,2]
[404387398,1770089440709,-1503.0,0.00018,2]
[404387399,1770089440717,-151.0,0.00018,2]
[404387401,1770089440727,-1503.0,0.00018,2]
[404387403,1770089440737,-151.0,0.00018,2]
[404387405,1770089440747,-151.0,0.00018,2]
[404387407,1770089440756,-1503.0,0.00018,2]
[404387409,1770089440765,-151.0,0.00018,2]
[404387411,1770089440774,-1503.0,0.00018,2]
[404387413,1770089440783,-151.0,0.00018,2]
[404387415,1770089440792,-1503.0,0.00018,2]
[404387416,1770089440801,-151.0,0.00018,2]
[404387418,1770089440811,-1503.0,0.00018,2]
[404387419,1770089440820,-151.0,0.00018,2]
[404387420,1770089440829,-1503.0,0.00018,2]
[404387421,1770089440838,-151.0,0.00018,2]
[404387422,1770089440848,-1503.0,0.00018,2]
[404387423,1770089440859,-151.0,0.00018,2]
[404387424,1770089440870,-1503.0,0.00018,2]
[404387425,1770089440879,-151.0,0.00018,2]
[404387426,1770089440889,-1503.0,0.00018,2]
[404387427,1770089440900,-151.0,0.00018,2]
[404387428,1770089440912,-1503.0,0.00018,2]
[404387429,1770089440920,-151.0,0.00018,2]
[404387430,1770089440930,-151.0,0.00018,2]
[404387431,1770089440940,-151.0,0.00018,2]
[404387432,1770089440950,-150.0,0.00018,7]
[404387433,1770089440961,-3721669.84561253,0.00018,2]
[404387434,1770089440991,-2870.83110314,0.00018,2]
[404387435,1770089441002,-651.0,0.00018,2]
[404387436,1770089441132,-1730.84596,0.00018,2]
[404387437,1770089441244,-507.02323491,0.00018,2]
[404387438,1770089441644,-1.7e-07,0.00018,2]
[404387439,1770089441679,-915.76,0.00018,2]
[404387440,1770089441693,-11377.57615549,0.00018,2]
[404387441,1770089441704,-2218.04471527,0.00018,2]
[404387442,1770089441718,-990.88773711,0.00018,2]
[404387443,1770089441738,-7428432.46128505,0.00018,2]
[404387444,1770089441749,-340.37412585,0.00018,2]
[404387453,1770089443919,-4180.14696462,8.282e-05,2]
[404387454,1770089443963,-2260.37538639,8.282e-05,2]
[404387455,1770089443974,-257.09,0.0001684,2]
[404387456,1770089443984,-2377.45177313,0.00018,2]
[404387457,1770089444064,-350.28045029,0.00018,2]
[404387463,1770089445583,-151.0,0.0001684,2]
[404387464,1770089445593,-151.0,0.0001684,2]
[404387465,1770089445603,-2306.63388952,0.00018,2]
[404387466,1770089445637,-541.65,0.00018,2]
[404387467,1770089445649,-7446.03427125,0.00018,2]
[404387468,1770089445692,-1868.3,0.00018,2]
[404387472,1770089474317,483.7248,8.222e-05,2]
[404387476,1770089501464,-512.69031328,8.322e-05,2]
[404387477,1770089501491,-621.88458803,8.322e-05,2]
[404387478,1770089502116,7730.86019738,8.223e-05,2]
[404387479,1770089512379,-1797.15415386,8.223e-05,2]
[404387480,1770089514390,-500.0,8.223e-05,2]
[404387481,1770089516825,-9938.02500262,8.223e-05,2]
[404387482,1770089516931,-10000.01,8.223e-05,2]
[404387483,1770089517048,-10000.01,8.223e-05,2]
[404387484,1770089517156,-10000.01,8.223e-05,2]
[404387485,1770089517278,-10000.01,8.223e-05,2]
[404387486,1770089517792,-10000.01,8.223e-05,2]
[404387487,1770089519565,-10000.01,8.223e-05,2]
[404387488,1770089519665,-10000.01,8.223e-05,2]
[404387489,1770089519752,-302.0,8.223e-05,2]
[404387490,1770089519785,-10000.01,8.223e-05,2]
[404387491,1770089521302,-300.0,8.223e-05,2]
[404387493,1770089524716,-300.0,8.222e-05,2]
[404387494,1770089524751,-200.0,8.223e-05,2]
[404387495,1770089526883,-2685.85822154,8.223e-05,2]
[404387496,1770089533959,-309.42108336,8.223e-05,2]
[404387499,1770089599224,-150.0,8.195e-05,2]
[404387500,1770089599256,-150.0,8.195e-05,2]
[404387501,1770089614381,-247.0,8.221e-05,2]
[404387502,1770089629768,-523.1465504,8.222e-05,2]
[404387503,1770089629797,-500.0,8.222e-05,2]
[404387504,1770089629824,-286.10550704,8.222e-05,2]
[404387505,1770089629852,-500.0,8.222e-05,2]
[404387506,1770089629880,-349.87294038,8.222e-05,2]
[404387507,1770089629907,-236.96976356,8.222e-05,2]
[404387508,1770089645054,-300.0,8.222e-05,2]
[404387509,1770089645084,-150.0,8.222e-05,2]
[404387510,1770089660297,-10000.01,8.223e-05,2]
[404387511,1770089660397,-10000.01,8.223e-05,2]
[404387512,1770089660502,-10000.01,8.223e-05,2]
[404387513,1770089660608,-10000.01,8.223e-05,2]
[404387514,1770089660735,-10000.01,8.223e-05,2]
[404387515,1770089660834,-10000.01,8.223e-05,2]
[404387516,1770089660931,-10000.01,8.223e-05,2]
[404387517,1770089661035,-10000.01,8.223e-05,2]
[404387518,1770089661189,-10000.01,8.223e-05,2]
[404387519,1770089661298,-10000.01,8.223e-05,2]
[404387520,1770089681817,435.31921162,8.222e-05,2]
[404387521,1770089701594,300.0,8.222e-05,2]
[404387522,1770089701644,300.0,8.222e-05,2]
[404387523,1770089701682,1200.0,8.222e-05,2]
[404387524,1770089701722,217.0,8.222e-05,2]
[404387525,1770089761856,300.0,8.222e-05,2]
[404387526,1770089761900,300.0,8.222e-05,2]
[404387527,1770089762093,500.0,8.222e-05,2]
[404387528,1770089762138,500.0,8.222e-05,2]
[404387529,1770089762180,500.0,8.222e-05,2]
[404387530,1770089762216,150.0,8.222e-05,2]
[404387531,1770089762254,500.0,8.222e-05,2]
[404387532,1770089762297,500.0,8.222e-05,2]
[404387533,1770089762334,500.0,8.222e-05,2]
[404387534,1770089762371,500.0,8.222e-05,2]
[404387535,1770089762409,500.0,8.222e-05,2]
[404387536,1770089762446,250.01,8.222e-05,2]
[404387537,1770089762469,249.99,8.222e-05,2]
[404387538,1770089762511,500.0,8.222e-05,2]
[404387539,1770089762550,500.0,8.222e-05,2]
[404387540,1770089762595,500.0,8.222e-05,2]
[404387541,1770089762635,500.0,8.222e-05,2]
[404387542,1770089762676,500.0,8.222e-05,2]
[404387543,1770089762717,500.0,8.222e-05,2]
[404387544,1770089762755,500.0,8.222e-05,2]
[404387545,1770089762797,500.0,8.222e-05,2]
[404387546,1770089762847,500.0,8.222e-05,2]
[404387547,1770089762887,250.02,8.222e-05,2]
[404387548,1770089762910,249.98,8.222e-05,2]
[404387549,1770089763201,500.0,8.222e-05,2]
[404387550,1770089763242,500.0,8.222e-05,2]
[404387551,1770089763286,500.0,8.222e-05,2]
[404387552,1770089763338,335.1243977,8.222e-05,2]
[404387553,1770089763388,500.0,8.222e-05,2]
[404387554,1770089763431,500.0,8.222e-05,2]
[404387558,1770089773406,150.0,8.195e-05,2]
[404387559,1770089773938,150.0,8.195e-05,2]
[404387560,1770089775487,500.0,8.222e-05,2]
[404387561,1770089775547,500.0,8.222e-05,2]
[404387562,1770089775590,500.0,8.222e-05,2]
[404387563,1770089775639,500.0,8.222e-05,2]
[404387564,1770089775682,500.0,8.222e-05,2]
[404387565,1770089775725,500.0,8.222e-05,2]
[404387566,1770089775764,500.0,8.222e-05,2]
[404387567,1770089775815,500.0,8.222e-05,2]
[404387568,1770089775858,500.0,8.222e-05,2]
[404387569,1770089775907,500.0,8.222e-05,2]
[404387570,1770089775950,0.01,8.222e-05,2]
[404387571,1770089775974,499.99,8.222e-05,2]
[404387572,1770089776013,500.0,8.222e-05,2]
[404387573,1770089776068,500.0,8.222e-05,2]
[404387574,1770089776118,500.0,8.222e-05,2]
[404387575,1770089776169,500.0,8.222e-05,2]
[404387576,1770089776513,500.0,8.222e-05,2]
[404387577,1770089776559,500.0,8.222e-05,2]
[404387578,1770089776782,335.1243977,8.222e-05,2]
[404387584,1770089797641,687.74670285,8.178e-05,2]
[404387585,1770089797668,116.49734115,8.178e-05,2]
[404387610,1770090125546,5000.01,8.222e-05,2]
[404387611,1770090125573,10000.01,8.222e-05,2]
[404387612,1770090125600,10000.01,8.222e-05,2]
[404387614,1770090231207,-5000.0,8.178e-05,2]
[404387615,1770090231398,-0.01,8.178e-05,2]
[404387616,1770090236994,-150.0,8.22e-05,2]
[404387617,1770090238198,2544.7096,8.122e-05,2]
[404387618,1770090246346,-300.0,8.22e-05,2]
[404387619,1770090301523,300.0,8.22e-05,2]
[404387620,1770090301560,1200.0,8.22e-05,2]
[404387621,1770090301634,300.0,8.22e-05,2]
[404387622,1770090301723,300.0,8.22e-05,2]
[404387623,1770090301921,150.0,8.22e-05,2]
[404387624,1770090391025,150.0,8.194e-05,2]
[404387625,1770090391314,150.0,8.194e-05,2]
[404387626,1770090452842,7450.01,8.122e-05,2]
[404387627,1770090452873,10000.01,8.122e-05,2]
[404387628,1770090452898,10000.01,8.122e-05,2]
[404387629,1770090452928,10000.01,8.122e-05,2]
[404387630,1770090452953,10000.01,8.122e-05,2]
[404387631,1770090452979,10000.01,8.122e-05,2]
[404387632,1770090453005,10000.01,8.122e-05,2]
[404387633,1770090453030,10000.01,8.122e-05,2]
[404387634,1770090453056,10000.01,8.122e-05,2]
[404387635,1770090453079,5000.01,8.122e-05,2]
[404387636,1770090453103,5000.01,8.122e-05,2]
[404387637,1770090453125,5000.01,8.122e-05,2]
[404387638,1770090453149,5000.01,8.122e-05,2]
[404387639,1770090453173,5000.01,8.122e-05,2]
[404387640,1770090510493,1122.00769252,8.09e-05,2]
[404387641,1770090511214,2960.99605246,8.09e-05,2]
[404387642,1770090511946,5223.54801461,8.09e-05,2]
[404387643,1770090535763,-150.0,8.121e-05,2]